fUSD/lending_fUSD_20251109
["ID","MTS","AMOUNT","RATE_DAILY","PERIOD"]
[393480433,1762710632096,-243.0,0.00019086,2]
[393480434,1762710632107,-243.0,0.00019142,2]
[393480435,1762710632117,-1200.0,0.00019177,2]
[393480436,1762710632127,-300.0,0.00019177,2]
[393480437,1762710632136,-2326.0,0.00019178,2]
[393480438,1762710632145,-243.0,0.00019208,2]
[393480439,1762710632154,-243.0,0.00019243,2]
[393480440,1762710632163,-243.0,0.00019649,2]
[393480441,1762710632173,-247.02,0.00019652,2]
[393480442,1762710632183,-5888.0,0.00019686,2]
[393480443,1762710632192,-243.0,0.00019702,2]
[393480444,1762710632202,-243.0,0.00019715,2]
[393480445,1762710632212,-243.0,0.00019729,2]
[393480446,1762710632222,-243.0,0.00019765,2]
[393480447,1762710632232,-318.20713335,0.00019841,2]
[393480448,1762710632242,-561.09389096,0.00019856,2]
[393480449,1762710632252,-5888.0,0.00019858,2]
[393480450,1762710632262,-247.02,0.0002029,2]
[393480452,1762710632271,-5888.0,0.00020543,2]
[393480453,1762710632281,-775.6,0.00020835,2]
[393480454,1762710632291,-420.0,0.00020899,2]
[393480455,1762710632301,-1269.06864682,0.00020904,2]
[393480456,1762710632313,-247.02,0.00020929,2]
[393480457,1762710632323,-936.81,0.00020951,2]
[393480458,1762710632333,-1680.0,0.00021001,2]
[393480459,1762710632343,-4867.0,0.00021233,2]
[393480460,1762710632352,-574.0,0.00021233,2]
[393480461,1762710632361,-3425.0,0.00021233,2]
[393480462,1762710632371,-1316.0,0.00021233,2]
[393480463,1762710632381,-608.0,0.00021233,2]
[393480464,1762710632390,-820.0,0.00021233,2]
[393480465,1762710632399,-1596.0,0.00021233,2]
[393480466,1762710632409,-906.0,0.00021233,2]
[393480467,1762710632419,-1189.0,0.00021233,2]
[393480468,1762710632428,-1273.0,0.00021233,2]
[393480469,1762710632439,-813.0,0.00021233,2]
[393480470,1762710632449,-150.0,0.00021233,2]
[393480471,1762710632459,-6661.0,0.00021233,2]
[393480472,1762710632468,-2289.985,0.00021233,2]
[393480473,1762710632477,-6478.0,0.00021233,2]
[393480474,1762710632487,-247.02,0.00021567,2]
[393480475,1762710632497,-629.35,0.00021633,2]
[393480476,1762710632507,-500.0,0.00021946,2]
[393480477,1762710632517,-247.02,0.00022206,2]
[393480478,1762710632527,-5528.9,0.00022562,2]
[393480479,1762710632537,-999.99,0.00022562,2]
[393480480,1762710632546,-150.99,0.00022562,2]
[393480481,1762710632555,-2170.22,0.00022562,2]
[393480482,1762710632564,-5208.66976392,0.00022562,2]
[393480483,1762710632577,-1525.545,0.00022562,2]
[393480484,1762710632591,-3265.77523608,0.00022562,2]
[393480485,1762710632600,-587.0,0.00022776,2]
[393480486,1762710632610,-107.53665754,0.00022828,2]
[393480487,1762710632622,-970.58787106,0.00022828,2]
[393480488,1762710632654,-1672.8754714,0.00022828,2]
[393480489,1762710632663,-247.02,0.00022845,2]
[393480490,1762710632672,-2351.0,0.00022997,2]
[393480491,1762710632681,-527.86361932,0.00023,3]
[393480492,1762710632690,-555.94784749,0.00023,2]
[393480493,1762710632700,-247.02,0.00023483,2]
[393480494,1762710632710,-150.0,0.00023653,2]
[393480495,1762710632718,-1000.0,0.00024096,2]
[393480496,1762710632728,-247.02,0.00024122,2]
[393480497,1762710632738,-3425.0,0.00024233,2]
[393480498,1762710632747,-632.90854859,0.00024233,2]
[393480499,1762710632759,-494.91920915,0.00024233,2]
[393480500,1762710632815,-188.17224226,0.00024233,2]
[393480501,1762710632825,-608.0,0.00024233,2]
[393480502,1762710632835,-820.0,0.00024233,2]
[393480503,1762710632845,-1253.74739048,0.00024233,2]
[393480504,1762710632857,-342.25260952,0.00024233,2]
[393480505,1762710632866,-164.66139048,0.00024233,2]
[393480506,1762710632877,-741.33860952,0.00024233,2]
[393480507,1762710632889,-1189.0,0.00024233,2]
[393480508,1762710632900,-1273.0,0.00024233,2]
[393480509,1762710632910,-813.0,0.00024233,2]
[393480510,1762710632920,-6661.0,0.00024233,2]
[393480511,1762710632930,-2142.0,0.00024233,2]
[393480512,1762710632941,-6478.0,0.00024233,2]
[393480513,1762710632950,-166.66,0.00024335,30]
[393480514,1762710632960,-199.66342539,0.00024621,2]
[393480515,1762710632969,-800.0,0.00024622,9]
[393480516,1762710632979,-203.63378537,0.00024622,9]
[393480517,1762710632989,-1000.0,0.00024658,2]
[393480518,1762710632999,-247.02,0.0002476,2]
[393480519,1762710633009,-166.66,0.00024826,30]
[393480520,1762710633019,-150.0,0.00025023,2]
[393480521,1762710633029,-3292.0,0.00025184,2]
[393480522,1762710633042,-500.0,0.00025299,2]
[393480523,1762710633054,-166.66,0.00025318,30]
[393480524,1762710633065,-566.47,0.00025603,2]
[393480525,1762710633075,-166.66,0.0002581,30]
[393480526,1762710633086,-777.82689917,0.00027108,2]
[393480527,1762710633098,-222.17310083,0.00027108,2]
[393480528,1762710633108,-776.82689917,0.00027233,2]
[393480529,1762710637773,-2326.0,0.00019178,2]
[393480530,1762710637783,-800.0,0.00024622,9]
[393480531,1762710637792,-800.0,0.00024622,9]
[393480532,1762710637802,-800.0,0.00024622,9]
[393480533,1762710637812,-800.0,0.00024622,9]
[393480534,1762710637822,-800.0,0.00024622,9]
[393480535,1762710637831,-800.0,0.00024622,9]
[393480536,1762710637841,-800.0,0.00024622,9]
[393480537,1762710637850,-800.0,0.00024622,9]
[393480538,1762710637860,-800.0,0.00024622,9]
[393480539,1762710637871,-2648.17310083,0.00027233,2]
[393480540,1762710637880,-1150.585,0.00027233,2]
[393480541,1762710637892,-264.497,0.00027233,2]
[393480542,1762710637905,-820.0,0.00027233,2]
[393480543,1762710637916,-1596.0,0.00027233,2]
[393480544,1762710637926,-906.0,0.00027233,2]
[393480545,1762710637936,-1189.0,0.00027233,2]
[393480546,1762710637946,-1273.0,0.00027233,2]
[393480547,1762710637955,-757.31273968,0.00027233,2]
[393480548,1762710637967,-55.68726032,0.00027233,2]
[393480549,1762710637977,-1780.36442617,0.00027233,2]
[393480550,1762710637988,-1580.29999603,0.00027233,2]
[393480551,1762710637999,-3300.3355778,0.00027233,2]
[393480552,1762710638009,-2142.0,0.00027233,2]
[393480553,1762710638018,-6470.0,0.00027233,2]
[393480554,1762710638028,-207.81859816,0.00027397,2]
[393480555,1762710638037,-1500.0,0.00027397,16]
[393480557,1762710638049,-1678.0,0.00027579,2]
[393480558,1762710638059,-447.0,0.000277,2]
[393480560,1762710638067,-566.47,0.00029027,2]
[393480562,1762710638077,-448.62392591,0.00029186,30]
[393480564,1762710638086,-150.0,0.00029186,30]
[393480566,1762710638096,-4304.0,0.000293,5]
[393480568,1762710638105,-153.0,0.00029578,2]
[393480570,1762710638116,-153.0,0.00029578,2]
[393480572,1762710638125,-153.0,0.00029578,2]
[393480574,1762710638136,-153.0,0.00029578,2]
[393480576,1762710638146,-172.0,0.0003,14]
[393480579,1762710638157,-1000.0,0.0003012,2]
[393480581,1762710638167,-1663.4737,0.00030133,2]
[393480583,1762710638177,-3425.0,0.00030233,2]
[393480585,1762710638187,-906.0,0.00030233,2]
[393480586,1762710638196,-1189.0,0.00030233,2]
[393480589,1762710638206,-724.48,0.00030233,2]
[393480591,1762710638216,-1244.700613,0.00030233,2]
[393480593,1762710638229,-5416.299387,0.00030233,2]
[393480595,1762710638239,-322.88647298,0.00030233,2]
[393480597,1762710638251,-1819.11352702,0.00030233,2]
[393480599,1762710638260,-2000.0,0.00031,2]
[393480601,1762710638271,-172.0,0.00031644,14]
[393480603,1762710638281,-1786.303,0.00032164,31]
[393480605,1762710638291,-566.47,0.00032452,2]
[393480608,1762710638310,-362.24989319,0.00032452,2]
[393480611,1762710638323,-3462.0,0.00032602,5]
[393480613,1762710638334,-775.6,0.00032616,2]
[393480615,1762710638344,-17113.40477979,0.00032626,2]
[393480617,1762710638363,-596.34361244,0.00032626,2]
[393480620,1762710638374,-692.42360236,0.00032626,2]
[393480622,1762710638388,-314.99999998,0.00032626,2]
[393480624,1762710638404,-419.06642269,0.00024622,9]
[393480632,1762710638470,-380.93357731,0.00024622,9]
[393480634,1762710638481,-114.81787956,0.00032626,2]
[393480636,1762710638493,-717.91807822,0.00032626,2]
[393480770,1762710639896,-559.0,0.00021233,2]
[393480772,1762710639907,-559.0,0.00024233,2]
[393480773,1762710639917,-559.0,0.00027233,2]
[393480774,1762710639928,-559.0,0.00030233,2]
[393480775,1762710639937,-7197.09204765,0.00032626,2]
[393480776,1762710639947,-1000.0,0.00032766,2]
[393480777,1762710639957,-515.39494023,0.00032876,10]
[393480778,1762710639967,-500.0,0.00032877,7]
[393480779,1762710639978,-104.15441672,0.00032877,7]
[393480780,1762710640302,-395.84558328,0.00032877,7]
[393480781,1762710640312,-500.0,0.00032877,7]
[393480782,1762710640322,-500.0,0.00032877,7]
[393480784,1762710640332,-465.50526176,0.00032877,7]
[393480786,1762710640342,-171.16,0.00032989,2]
[393480787,1762710640355,-164.0,0.00033,14]
[393480788,1762710640365,-1000.0,0.00033132,2]
[393480789,1762710640375,-150.0,0.00033151,2]
[393480791,1762710640385,-150.0,0.00033151,2]
[393480793,1762710640394,-150.0,0.00033151,2]
[393480795,1762710640403,-150.0,0.00033151,2]
[393480797,1762710640414,-150.0,0.00033151,2]
[393480799,1762710640424,-500.0,0.00033151,2]
[393480801,1762710640433,-150.0,0.00033151,2]
[393480803,1762710640443,-150.0,0.00033151,2]
[393480805,1762710640452,-150.0,0.00033151,2]
[393480807,1762710640463,-174.0,0.00033226,30]
[393480809,1762710640472,-500.0,0.00033233,2]
[393480811,1762710640481,-500.0,0.00033233,2]
[393480813,1762710640491,-500.0,0.00033233,2]
[393480816,1762710640501,-500.0,0.00033233,2]
[393480817,1762710640511,-500.0,0.00033233,2]
[393480818,1762710640520,-500.0,0.00033233,2]
[393480819,1762710640530,-500.0,0.00033233,2]
[393480820,1762710640540,-500.0,0.00033233,2]
[393480821,1762710640550,-500.0,0.00033233,2]
[393480822,1762710640560,-500.0,0.00033233,2]
[393480823,1762710640570,-500.0,0.00033233,2]
[393480828,1762710640829,-500.0,0.00033233,2]
[393480829,1762710640840,-500.0,0.00033233,2]
[393480830,1762710640850,-500.0,0.00033233,2]
[393480831,1762710640860,-500.0,0.00033233,2]
[393480832,1762710640870,-500.0,0.00033233,2]
[393480833,1762710640880,-500.0,0.00033233,2]
[393480834,1762710640890,-500.0,0.00033233,2]
[393480835,1762710640899,-500.0,0.00033233,2]
[393480836,1762710640909,-500.0,0.00033233,2]
[393480837,1762710640918,-500.0,0.00033233,2]
[393480838,1762710640928,-299.19769031,0.00033233,2]
[393480839,1762710640940,-233.32303081,0.00033233,2]
[393480840,1762710640949,-500.0,0.00033233,2]
[393480841,1762710640960,-226.77564767,0.00033233,2]
[393480842,1762710640972,-273.22435233,0.00033233,2]
[393480843,1762710640982,-420.52938697,0.00033233,2]
[393480844,1762710641039,-79.47061303,0.00033233,2]
[393480845,1762710641054,-500.0,0.00033233,2]
[393480846,1762710641064,-500.0,0.00033233,2]
[393480847,1762710641073,-415.4255797,0.00033233,2]
[393480848,1762710641082,-2889.52550427,0.00033233,2]
[393480849,1762710641094,-535.47449573,0.00033233,2]
[393480850,1762710641103,-906.0,0.00033233,2]
[393480851,1762710641113,-6661.0,0.00033233,2]
[393480852,1762710641125,-500.84911598,0.00033256,5]
[393480853,1762710641135,-150.0,0.00033288,2]
[393480854,1762710641144,-150.0,0.00033288,2]
[393480855,1762710641154,-150.0,0.00033288,2]
[393480856,1762710641163,-150.0,0.00033288,2]
[393480857,1762710641173,-200.0,0.00033288,2]
[393480858,1762710641182,-557.89774482,0.00033288,2]
[393480859,1762710641192,-200.0,0.00033288,2]
[393480860,1762710641202,-250.0,0.00033288,2]
[393480861,1762710641211,-150.0,0.00033288,2]
[393480862,1762710641221,-465.67133023,0.00033304,5]
[393480863,1762710641231,-500.0,0.00033304,5]
[393480864,1762710641242,-500.0,0.00033304,5]
[393480865,1762710641253,-200.0,0.00033304,5]
[393480866,1762710641262,-500.0,0.00033304,5]
[393480867,1762710641272,-500.0,0.00033315,5]
[393480868,1762710641282,-150.0,0.00033425,2]
[393480869,1762710641291,-150.0,0.00033425,2]
[393480870,1762710641300,-150.0,0.00033425,2]
[393480871,1762710641310,-150.0,0.00033425,2]
[393480872,1762710641319,-150.0,0.00033425,2]
[393480873,1762710641328,-500.0,0.0003343,5]
[393480874,1762710641337,-250.0,0.00033562,2]
[393480875,1762710641347,-250.0,0.00033562,2]
[393480876,1762710641356,-150.0,0.00033562,2]
[393480877,1762710641365,-220.86147635,0.00033562,2]
[393480878,1762710641374,-273.00202241,0.00033562,2]
[393480879,1762710641383,-256.0,0.00033699,2]
[393480880,1762710641392,-506.29988366,0.00033863,5]
[393480881,1762710641401,-1000.0,0.00033978,5]
[393480882,1762710641411,-1631.67613009,0.00034142,2]
[393480883,1762710641421,-32380.4094403,0.00034184,3]
[393480884,1762710641430,-199.0,0.00034193,7]
[393480885,1762710641439,-32380.4094403,0.00034194,3]
[393480886,1762710641448,-1700.0,0.00034204,7]
[393480887,1762710641457,-27.5099393,0.00034204,7]
[393480888,1762710641469,-1672.4900607,0.00034204,7]
[393480889,1762710641479,-1700.0,0.00034204,7]
[393480890,1762710641488,-1700.0,0.00034204,7]
[393480891,1762710641498,-168.78715133,0.00034204,7]
[393480892,1762710641560,-392.4532646,0.00034204,7]
[393480893,1762710641571,-18.95036131,0.00034204,7]
[393480894,1762710641581,-1700.0,0.00034204,7]
[393480895,1762710641590,-466.5917051,0.00034204,7]
[393480896,1762710641606,-559.0,0.00033233,2]
[393480897,1762710641615,-1233.4082949,0.00034204,7]
[393480898,1762710641625,-1700.0,0.00034204,7]
[393480899,1762710641634,-1700.0,0.00034204,7]
[393480900,1762710641644,-1700.0,0.00034204,7]
[393480901,1762710641653,-1700.0,0.00034204,7]
[393480902,1762710641662,-1700.0,0.00034204,7]
[393480903,1762710641673,-1700.0,0.00034204,7]
[393480904,1762710641682,-1700.0,0.00034204,7]
[393480905,1762710641692,-1700.0,0.00034204,7]
[393480906,1762710641702,-1700.0,0.00034204,7]
[393480907,1762710641711,-1700.0,0.00034204,7]
[393480908,1762710641721,-1700.0,0.00034204,7]
[393480909,1762710641730,-1700.0,0.00034204,7]
[393480910,1762710641739,-500.0,0.00034204,7]
[393480911,1762710641749,-711.56934158,0.00034204,7]
[393480912,1762710641824,-622.73,0.00034204,7]
[393480913,1762710641839,-365.70065842,0.00034204,7]
[393480914,1762710641848,-1602.37660739,0.00034204,7]
[393480921,1762710642946,-97.62339261,0.00034204,7]
[393480922,1762710642957,-1700.0,0.00034204,7]
[393480923,1762710642968,-904.41837465,0.00034204,7]
[393480924,1762710642977,-1700.0,0.00034204,7]
[393480925,1762710642987,-1700.0,0.00034204,7]
[393480926,1762710642998,-307.09336004,0.00034204,7]
[393480927,1762710643009,-1392.90663996,0.00034204,7]
[393480928,1762710643020,-1700.0,0.00034204,7]
[393480929,1762710643030,-1700.0,0.00034204,7]
[393480930,1762710643041,-1700.0,0.00034204,7]
[393480931,1762710643051,-1700.0,0.00034204,7]
[393480932,1762710643062,-3148.96709695,0.00034204,7]
[393480933,1762710643071,-2066.580493,0.00034375,120]
[393480934,1762710643080,-1631.67613009,0.00034398,2]
[393480935,1762710643091,-164.0,0.00034521,30]
[393480936,1762710643101,-151.16713156,0.00034526,5]
[393480937,1762710643112,-168.41613634,0.00034576,15]
[393480938,1762710643126,-1631.67613009,0.00034642,2]
[393480939,1762710643136,-362.24989319,0.00034677,2]
[393480940,1762710643146,-2000.0,0.000347,2]
[393480941,1762710643157,-250.0,0.00034709,2]
[393480942,1762710643168,-199.0,0.00034741,8]
[393480943,1762710643178,-17.7045041,0.00034785,7]
[393480944,1762710643190,-410.13914055,0.00034785,7]
[393480945,1762710643201,-500.0,0.00034785,7]
[393480946,1762710643211,-571.92739772,0.000349,2]
[393480953,1762710643658,-1059.74873237,0.000349,2]
[393480954,1762710643668,-868.86,0.00035238,5]
[393480955,1762710643678,-1631.67613009,0.00035247,2]
[393480956,1762710643689,-199.0,0.00035289,9]
[393480957,1762710643699,-1631.67613009,0.00035573,2]
[393480958,1762710643711,-32380.4094403,0.00035595,3]
[393480959,1762710643721,-269.69582837,0.00035616,2]
[393480960,1762710643731,-163.36,0.00035758,2]
[393480961,1762710643740,-32380.4094403,0.00035768,3]
[393480962,1762710643751,-215.74091976,0.00035777,2]
[393480963,1762710643761,-37167.2151919,0.00035778,2]
[393480964,1762710643771,-2650.0827272,0.00035778,2]
[393480965,1762710643781,-1631.67613009,0.00035809,2]
[393480966,1762710643791,-199.0,0.00035837,10]
[393480967,1762710643800,-566.47,0.00035877,2]
[393480968,1762710643810,-1631.67613009,0.00036044,2]
[393480969,1762710643819,-343.578,0.0003607,2]
[393480970,1762710643830,-1000.0,0.00036144,2]
[393480971,1762710643840,-32380.4094403,0.00036148,3]
[393480972,1762710643850,-2500.0,0.00036152,2]
[393480973,1762710643860,-2500.0,0.00036156,2]
[393480974,1762710643871,-1000.0,0.00036165,7]
[393480975,1762710643881,-12998.37,0.00036188,2]
[393480976,1762710643890,-24923.7252145,0.00036225,3]
[393480977,1762710643901,-325.657,0.00036233,2]
[393480978,1762710643911,-805.264,0.00036233,2]
[393480979,1762710643921,-6661.0,0.00036233,2]
[393480980,1762710643930,-559.0,0.00036233,2]
[393480981,1762710643939,-2500.0,0.00036234,2]
[393480982,1762710643948,-32380.4094403,0.00036235,3]
[393480983,1762710643958,-2500.0,0.00036255,2]
[393480984,1762710643967,-2500.0,0.00036265,2]
[393480985,1762710643977,-467.73303464,0.00036273,5]
[393480986,1762710643987,-1000.0,0.00036308,7]
[393480987,1762710643997,-1631.67613011,0.00036316,2]
[393480988,1762710644006,-24923.7252145,0.00036327,3]
[393480989,1762710644017,-32380.4094403,0.00036337,4]
[393480990,1762710644027,-2500.0,0.00036347,2]
[393480991,1762710644039,-199.0,0.00036385,11]
[393480992,1762710644051,-394.0,0.000364,2]
[393480993,1762710644063,-204.06,0.000364,2]
[393480994,1762710644074,-901.88380068,0.0003641,7]
[393480995,1762710644084,-151.0,0.00036416,7]
[393480996,1762710644095,-151.0,0.00036416,7]
[393480997,1762710644105,-151.0,0.00036416,7]
[393480998,1762710644117,-24923.7252145,0.0003642,4]
[393480999,1762710644127,-193.23155827,0.00036429,2]
[393481000,1762710644136,-500.0,0.00036429,7]
[393481001,1762710644146,-182.95104454,0.00036429,7]
[393481002,1762710644156,-150.0,0.00036429,7]
[393481003,1762710644165,-150.0,0.00036429,7]
[393481004,1762710644175,-150.0,0.00036429,7]
[393481005,1762710644184,-150.0,0.00036429,7]
[393481006,1762710644193,-150.0,0.00036429,7]
[393481007,1762710644202,-150.0,0.00036429,7]
[393481008,1762710644212,-150.0,0.00036429,7]
[393481009,1762710644221,-150.0,0.00036429,7]
[393481010,1762710644230,-150.0,0.00036429,7]
[393481011,1762710644240,-150.0,0.00036429,7]
[393481012,1762710644250,-150.0,0.00036429,7]
[393481013,1762710644260,-32380.4094403,0.0003643,4]
[393481014,1762710644272,-32380.4094403,0.0003644,4]
[393481015,1762710644281,-24923.7252145,0.00036441,4]
[393481016,1762710644291,-24923.7252145,0.00036444,4]
[393481017,1762710644300,-655.65,0.00036445,2]
[393481018,1762710644310,-11778.70689704,0.00036451,2]
[393481019,1762710644319,-25000.0,0.00036452,2]
[393481020,1762710644330,-32380.4094403,0.00036454,4]
[393481021,1762710644341,-24923.7252145,0.00036454,4]
[393481022,1762710644350,-5000.0,0.00036454,2]
[393481023,1762710644359,-5000.0,0.0003646,2]
[393481024,1762710644368,-32380.4094403,0.00036464,4]
[393481025,1762710644378,-24923.7252145,0.00036473,4]
[393481026,1762710644387,-25000.0,0.00036474,2]
[393481027,1762710644396,-25000.0,0.00036483,2]
[393481028,1762710644405,-150.6,0.00036483,60]
[393481029,1762710644414,-150.0,0.00036558,7]
[393481030,1762710644423,-150.0,0.0003656,7]
[393481031,1762710644432,-5000.0,0.00036573,2]
[393481032,1762710644441,-150.6,0.00036583,60]
[393481033,1762710644450,-32380.4094403,0.00036583,4]
[393481034,1762710644460,-24923.7252145,0.00036612,4]
[393481035,1762710644469,-150.0,0.00036617,7]
[393481036,1762710644478,-150.0,0.00036617,7]
[393481037,1762710644487,-150.0,0.00036621,7]
[393481038,1762710644495,-32380.4094403,0.00036622,4]
[393481039,1762710644505,-5000.0,0.00036622,2]
[393481040,1762710644514,-5000.0,0.00036623,2]
[393481041,1762710644524,-150.0,0.00036625,7]
[393481042,1762710644533,-5000.0,0.00036628,2]
[393481043,1762710644542,-5000.0,0.00036631,2]
[393481044,1762710644552,-24923.7252145,0.00036632,4]
[393481045,1762710644562,-5000.0,0.00036642,2]
[393481046,1762710644571,-5000.0,0.00036649,2]
[393481047,1762710644580,-5000.0,0.00036653,2]
[393481048,1762710644590,-5000.0,0.00036677,2]
[393481049,1762710644600,-2500.0,0.00036681,2]
[393481050,1762710644609,-2500.0,0.00036681,2]
[393481051,1762710644619,-150.6,0.00036683,60]
[393481052,1762710644628,-24923.7252145,0.00036686,4]
[393481053,1762710644637,-150.0,0.00036687,7]
[393481054,1762710644647,-150.0,0.0003669,7]
[393481055,1762710644656,-32380.4094403,0.00036695,4]
[393481056,1762710644665,-300.0,0.000367,2]
[393481057,1762710644675,-348.15688934,0.000367,2]
[393481058,1762710644684,-150.0,0.00036702,7]
[393481059,1762710644693,-5000.0,0.00036736,2]
[393481060,1762710644702,-5000.0,0.00036744,2]
[393481061,1762710644713,-32380.4094403,0.0003676,4]
[393481062,1762710644723,-24923.7252145,0.00036766,4]
[393481063,1762710644908,-5000.0,0.00036776,2]
[393481064,1762710644919,-150.6,0.00036783,60]
[393481065,1762710644929,-5000.0,0.00036791,2]
[393481066,1762710644938,-1587.23707455,0.000368,2]
[393481067,1762710644947,-154.8,0.000368,14]
[393481068,1762710644957,-1250.0,0.000368,2]
[393481069,1762710644966,-150.0,0.00036805,7]
[393481070,1762710644975,-150.0,0.00036805,7]
[393481071,1762710644984,-150.0,0.00036813,7]
[393481072,1762710644994,-150.0,0.00036815,7]
[393481073,1762710645004,-150.0,0.00036821,7]
[393481074,1762710645015,-150.0,0.00036821,7]
[393481075,1762710645026,-24923.7252145,0.00036829,4]
[393481076,1762710645035,-32380.4094403,0.00036838,4]
[393481077,1762710645049,-2530.45,0.00036839,2]
[393481078,1762710645059,-4488.4,0.00036839,2]
[393481079,1762710645068,-5000.0,0.00036854,2]
[393481080,1762710645078,-32380.4094403,0.00036857,4]
[393481081,1762710645089,-5000.0,0.00036867,2]
[393481082,1762710645099,-24923.7252145,0.00036869,4]
[393481083,1762710645108,-24923.7252145,0.00036869,4]
[393481084,1762710645120,-5000.0,0.0003687,2]
[393481085,1762710645129,-25000.0,0.00036879,2]
[393481086,1762710645139,-32380.4094403,0.0003688,4]
[393481087,1762710645149,-150.6,0.00036883,60]
[393481088,1762710645160,-1999.0,0.00036899,120]
[393481089,1762710645171,-362.24989319,0.00036901,2]
[393481090,1762710645181,-1250.0,0.00036907,2]
[393481091,1762710645191,-13923.08775288,0.0003691,2]
[393481092,1762710645200,-5000.0,0.00036921,2]
[393481093,1762710645209,-199.0,0.00036933,12]
[393481094,1762710645219,-24923.7252145,0.00036937,4]
[393481095,1762710645229,-150.0,0.00036944,7]
[393481096,1762710645239,-32380.4094403,0.00036947,4]
[393481097,1762710645249,-150.0,0.00036952,7]
[393481098,1762710645260,-1958.14,0.00036973,2]
[393481099,1762710645269,-2872.89,0.00036976,2]
[393481100,1762710645278,-5000.0,0.00036977,2]
[393481101,1762710645287,-150.6,0.00036983,60]
[393481102,1762710645297,-49847.4504289,0.00036989,4]
[393481103,1762710645306,-5800.0,0.0003699,2]
[393481104,1762710645317,-150.0,0.00036992,7]
[393481105,1762710645326,-150.0,0.00036992,7]
[393481106,1762710645336,-5800.0,0.00036998,2]
[393481107,1762710645345,-69708.08727987,0.00036999,2]
[393481108,1762710645354,-8787.6948655,0.00037,2]
[393481109,1762710645364,-163.17243773,0.00037,2]
[393481110,1762710645373,-17836.0,0.00037,15]
[393481111,1762710645382,-181.18098274,0.00037,2]
[393481112,1762710645391,-150.0,0.00037004,7]
[393481113,1762710645401,-150.0,0.00037005,20]
[393481114,1762710645410,-5800.0,0.00037007,2]
[393481115,1762710645419,-5800.0,0.00037009,2]
[393481116,1762710645429,-5800.0,0.00037015,2]
[393481117,1762710645438,-150.0,0.00037017,7]
[393481118,1762710645447,-5800.0,0.00037018,2]
[393481119,1762710645457,-24923.7252145,0.00037022,4]
[393481120,1762710645466,-5800.0,0.00037024,2]
[393481121,1762710645475,-5800.0,0.00037026,2]
[393481122,1762710645485,-5800.0,0.00037032,2]
[393481123,1762710645494,-5800.0,0.0003706,2]
[393481124,1762710645504,-5800.0,0.00037068,2]
[393481125,1762710645514,-150.0,0.00037073,7]
[393481126,1762710645524,-150.0,0.00037082,7]
[393481127,1762710645533,-150.0,0.00037082,7]
[393481128,1762710645543,-150.6,0.00037083,60]
[393481129,1762710645554,-5800.0,0.0003709,2]
[393481130,1762710645564,-24923.7252145,0.00037092,4]
[393481131,1762710645575,-5800.0,0.00037099,2]
[393481132,1762710645584,-171.12,0.000371,30]
[393481133,1762710645594,-150.0,0.00037101,2]
[393481134,1762710645604,-5800.0,0.00037107,2]
[393481135,1762710645614,-150.0,0.00037122,7]
[393481136,1762710645625,-976.57879626,0.00037178,2]
[393481137,1762710645635,-150.0,0.0003718,7]
[393481138,1762710645646,-150.0,0.0003718,7]
[393481139,1762710645655,-150.6,0.00037183,60]
[393481140,1762710645665,-150.0,0.00037196,7]
[393481141,1762710645675,-150.0,0.00037202,7]
[393481142,1762710645684,-150.0,0.00037213,7]
[393481143,1762710645693,-150.0,0.00037213,7]
[393481144,1762710645701,-1490.18809361,0.00037225,7]